bitfinex/quotes_ETHUSD_20250925
["timestamp","ask_amount","ask_price","bid_price","bid_amount"]
[1758832039944,3.74397787,3911.6,3911.5,0.002]
[1758832040107,10.33831423,3911.6,3911.5,0.002]
[1758832040922,3.78231423,3911.6,3911.5,0.002]
[1758832041206,11.69968723,3911.6,3911.5,0.002]
[1758832043376,10.33931423,3911.6,3911.5,0.002]
[1758832045440,10.33831423,3911.6,3911.5,0.002]
[1758832045672,11.79438384,3911.6,3911.5,0.002]
[1758832045876,12.69939588,3911.6,3911.5,0.002]
[1758832046379,11.79438384,3911.6,3911.5,0.002]
[1758832046764,2.00158523,3911.6,3911.5,0.002]
[1758832046964,0.54551562,3911.6,3911.5,0.2324]
[1758832047163,0.54551562,3911.6,3911.5,0.002]
[1758832047363,4.97051562,3911.7,3911.5,0.2324]
[1758832047569,0.54551562,3911.6,3911.5,0.2324]
[1758832048075,0.54551562,3911.6,3911.5,0.002]
[1758832048243,1.11041176,3911.6,3911.5,0.002]
[1758832048872,7.66541176,3911.6,3911.5,0.002]
[1758832050281,5.53441176,3911.6,3911.5,0.002]
[1758832055499,0.54551562,3911.6,3911.5,0.4754]
[1758832055711,0.54551562,3911.6,3911.5,0.7058]
[1758832055712,4.96851562,3911.6,3911.5,0.7058]
[1758832056613,0.54551562,3911.6,3911.5,0.002]
[1758832056829,4.96851562,3911.6,3911.5,0.002]
[1758832057564,5.64696143,3911.6,3911.5,0.002]
[1758832057710,4.96851562,3911.6,3911.5,0.002]
[1758832058205,5.64696143,3911.6,3911.5,0.002]
[1758832059639,4.96851562,3911.6,3911.5,0.002]
[1758832059828,4.96851562,3911.6,3911.5,0.2324]
[1758832060031,4.96851562,3911.6,3911.5,0.7058]
[1758832060612,0.54551562,3911.6,3911.5,0.7058]
[1758832060914,4.96751562,3911.6,3911.5,0.7058]
[1758832061108,0.54551562,3911.6,3911.5,3.26236397]
[1758832061545,7.86844581,3911.7,3911.5,3.26236397]
[1758832061546,7.19,3911.7,3911.5,3.26236397]
[1758832061744,7.19,3911.7,3911.6,2.55649861]
[1758832061961,0.54342578,3911.7,3911.6,2.55649861]
[1758832062239,0.54342578,3911.7,3911.6,0.7038]
[1758832062445,0.54342578,3911.7,3911.5,0.002]
[1758832062623,4.96442578,3911.6,3911.5,2.55856068]
[1758832062955,4.96442578,3911.6,3911.5,0.2324]
[1758832063136,6.17986836,3911.6,3911.5,0.2324]
[1758832063439,6.85831417,3911.6,3911.5,0.002]
[1758832064048,9.41481278,3911.6,3911.5,0.002]
[1758832064348,9.41666697,3911.6,3911.5,0.002]
[1758832065048,4.99608524,3911.6,3911.5,0.002]
[1758832065365,12.90645824,3911.6,3911.5,0.002]
[1758832065655,2.5566947,3911.3,3911.2,0.002]
[1758832065871,10.037701,3911.3,3911.2,0.002]
[1758832066070,10.718001,3911.3,3911.2,0.002]
[1758832066357,12.07826323,3911.3,3911.2,0.002]
[1758832067339,4.42226853,3911.3,3911.2,0.002]
[1758832067550,13.52796323,3911.3,3911.2,0.002]
[1758832068059,10.97126853,3911.3,3911.2,0.002]
[1758832068256,13.52796323,3911.3,3911.2,0.002]
[1758832068670,13.74486323,3911.3,3911.2,0.002]
[1758832069169,13.52696323,3911.3,3911.2,0.002]
[1758832069527,8.84126853,3911.3,3911.2,0.002]
[1758832069867,7.4800063,3911.3,3911.2,0.002]
[1758832070051,0.54384405,3911.3,3911.2,0.2344]
[1758832070229,5.86984855,3911.3,3911.2,0.7078]
[1758832071632,5.86984855,3911.3,3911.2,3.26456007]
[1758832071973,5.86984855,3911.3,3911.2,0.7078]
[1758832072545,5.87086135,3911.3,3911.2,0.7078]
[1758832072740,5.87086135,3911.3,3911.2,3.26456007]
[1758832072945,5.87086135,3911.3,3911.2,0.7078]
[1758832074167,5.87086135,3911.3,3911.2,3.26456007]
[1758832074733,5.87086135,3911.3,3911.2,0.7078]
[1758832074966,5.87086135,3911.3,3911.2,3.26456007]
[1758832075136,4.96285685,3911.3,3911.2,3.26456007]
[1758832075536,12.15285685,3911.3,3911.2,3.26456007]
[1758832076205,13.06086135,3911.3,3911.2,0.002]
[1758832076340,15.55672444,3911.3,3911.2,0.002]
[1758832077364,14.64871994,3911.3,3911.2,0.002]
[1758832077569,15.55674782,3911.3,3911.2,0.002]
[1758832077944,14.64871994,3911.3,3911.2,0.002]
[1758832078766,15.55661425,3911.3,3911.2,0.002]
[1758832078942,15.55660797,3911.3,3911.2,0.002]
[1758832079150,8.64274488,3911.3,3911.2,2.55876007]
[1758832079352,12.14985685,3911.3,3911.2,3.26456007]
[1758832079569,12.83081843,3911.3,3911.2,3.26456007]
[1758832079872,8.41581843,3911.3,3911.2,3.26456007]
[1758832080088,1.22581843,3911.3,3911.2,3.84945666]
[1758832080254,0.54485685,3911.3,3911.2,4.64145666]
[1758832080454,8.001,3911.6,3911.5,2.55656397]
[1758832080654,8.54581317,3911.6,3911.5,3.26236397]
[1758832082791,8.001,3911.6,3911.5,4.66561055]
[1758832085890,8.001,3911.6,3911.5,4.66761055]
[1758832088495,8.001,3911.6,3911.5,9.07961055]
[1758832089395,8.001,3911.6,3911.5,7.67636397]
[1758832092060,8.001,3911.6,3911.5,8.46836397]
[1758832092294,8.001,3911.6,3911.5,8.59556397]
[1758832093412,8.001,3911.6,3911.5,8.12216397]
[1758832093578,8.001,3911.6,3911.5,8.59376397]
[1758832093779,1e-08,3911.6,3911.5,18.70627932]
[1758832094589,0.001,3912.0,3911.9,3.34830256]
[1758832094794,0.001,3912.0,3911.9,12.91286558]
[1758832094995,0.001,3912.0,3911.9,13.48610256]
[1758832095197,0.001,3912.0,3911.9,14.59560504]
[1758832095818,0.001,3912.0,3911.9,14.69805264]
[1758832095989,0.001,3912.0,3911.9,12.56805264]
[1758832096194,0.001,3912.0,3911.9,14.59560504]
[1758832104637,0.001,3912.0,3911.9,8.05660504]
[1758832104812,0.001,3912.0,3911.9,8.68640504]
[1758832105007,0.001,3912.0,3911.9,13.79880504]
[1758832105329,0.001,3912.0,3911.9,14.11760504]
[1758832105503,0.001,3912.0,3911.9,13.79880504]
[1758832106258,0.001,3912.0,3911.9,3.42920504]
[1758832106401,0.001,3912.0,3911.9,6.96030256]
[1758832106596,0.001,3912.0,3911.9,10.75230256]
[1758832108733,0.2179,3912.0,3911.9,10.75230256]
[1758832109503,0.001,3912.0,3911.9,10.75230256]
[1758832109834,0.6759,3912.0,3911.9,2.55630256]
[1758832112115,0.6759,3912.0,3911.9,3.34830256]
[1758832112116,0.001,3912.0,3911.9,3.34830256]
[1758832112449,0.001,3912.0,3911.9,4.67927106]
[1758832113316,0.001,3912.0,3911.9,3.34830256]
[1758832114046,0.001,3912.0,3911.9,6.95830256]
[1758832114243,0.6759,3912.0,3911.9,2.55630256]
[1758832114446,0.6759,3912.0,3911.9,6.95830256]
[1758832114813,0.001,3912.0,3911.9,6.95830256]
[1758832117046,0.001,3912.0,3911.9,8.45770256]
[1758832117345,0.001,3912.0,3911.9,9.85931106]
[1758832117561,0.001,3912.0,3911.9,12.98651106]
[1758832118060,0.001,3912.0,3911.9,18.98005485]
[1758832119147,0.001,3912.8,3912.4,3.34797587]
[1758832119466,0.001,3912.8,3912.4,12.90353562]
[1758832119758,0.001,3912.8,3912.4,14.29911054]
[1758832119965,0.001,3912.8,3912.4,13.59171054]
[1758832120365,0.2179,3912.8,3912.4,10.74797587]
[1758832120662,0.3451,3912.8,3912.4,10.74797587]
[1758832120865,0.68196158,3913.3,3912.4,10.74797587]
[1758832120866,0.68196158,3913.3,3913.2,3.34745333]
[1758832121035,0.001,3913.3,3913.2,10.87465333]
[1758832121654,0.001,3913.3,3913.2,11.34785333]
[1758832121854,0.001,3913.3,3913.2,11.58205333]
[1758832122167,0.001,3913.3,3913.2,13.20871196]
[1758832127266,0.54369449,3914.9,3913.2,10.65325863]
[1758832127466,0.001,3915.0,3914.5,3.34660467]
[1758832127654,0.001,3915.0,3914.5,7.74360467]
[1758832127860,0.001,3915.0,3914.5,8.57820467]
[1758832128062,0.001,3915.0,3914.5,8.93968921]
[1758832128255,0.001,3915.0,3914.5,8.23228921]
[1758832128570,0.2169,3914.9,3914.5,8.23228921]
[1758832129174,0.001,3915.0,3914.5,11.23228921]
[1758832129670,0.001,3915.0,3914.5,11.91848921]
[1758832130170,0.001,3915.0,3914.5,6.83528921]
[1758832130351,0.2179,3915.0,3914.5,13.36028921]
[1758832130964,0.001,3915.0,3914.5,13.36028921]
[1758832131549,0.2179,3915.0,3914.5,11.23028921]
[1758832133546,0.2179,3915.0,3914.5,6.83528921]
[1758832133751,0.2179,3915.0,3914.5,11.22928921]
[1758832135584,0.2179,3915.0,3914.5,0.1272]
[1758832135796,0.1272,3914.5,3913.7,0.1272]
[1758832135991,0.1272,3914.1,3914.0,2.55492492]
[1758832136324,0.1272,3914.1,3914.0,4.38792492]
[1758832136496,0.3441,3914.1,3914.0,4.38792492]
[1758832136662,0.3441,3914.1,3914.0,1.833]
[1758832136862,0.3441,3914.1,3913.4,0.1272]
[1758832137089,0.3441,3914.1,3913.6,3.0]
[1758832137387,0.3441,3914.1,3914.0,2.55493101]
[1758832138097,0.2169,3914.5,3914.1,2.5548241]
[1758832138299,0.1272,3914.4,3914.2,2.55478883]
[1758832138497,0.3441,3914.4,3914.2,2.55478883]
[1758832138669,0.2169,3914.3,3914.0,4.393]
[1758832138863,0.1272,3914.4,3914.0,4.393]
[1758832139062,0.1272,3914.4,3914.3,2.5547352]
[1758832139259,0.001,3914.6,3914.5,2.55460467]
[1758832139466,0.001,3914.6,3914.5,6.97315071]
[1758832139664,0.001,3914.6,3914.5,6.94760467]
[1758832142799,0.001,3914.6,3914.5,10.98400467]
[1758832142986,0.001,3914.6,3914.5,11.42580467]
[1758832143169,0.001,3914.6,3914.5,11.79827288]
[1758832144296,0.001,3914.6,3914.5,11.55387288]
[1758832144468,0.001,3914.6,3914.5,9.94660467]
[1758832144673,0.2179,3914.6,3914.5,9.94660467]
[1758832145791,0.2179,3914.6,3914.5,5.55460467]
[1758832145993,0.2179,3914.6,3914.5,9.94560467]
[1758832146586,0.001,3914.6,3914.5,9.94560467]
[1758832148680,0.001,3914.6,3914.5,10.63490467]
[1758832148879,0.001,3914.6,3914.5,12.74586866]
[1758832149397,0.001,3914.6,3914.5,3.792]
[1758832149605,0.58810647,3914.6,3913.1,0.002]
[1758832149811,0.68096158,3914.1,3913.2,6.94539822]
[1758832149975,1.44176805,3914.0,3913.2,4.39]
[1758832150180,0.54390647,3913.9,3913.7,2.55510007]
[1758832150381,0.54390647,3913.8,3913.6,2.55519164]
[1758832150575,0.89786158,3914.0,3913.6,2.55519164]
[1758832150576,0.54390647,3913.7,3913.6,2.55519164]
[1758832151191,0.54390647,3913.7,3913.6,2.55519215]
[1758832152287,0.54390647,3913.7,3913.6,8.42549215]
[1758832152801,0.54390647,3913.7,3913.6,8.17729215]
[1758832153002,0.54390647,3913.7,3913.6,6.94419215]
[1758832153906,0.1272,3914.0,3913.7,2.55510441]
[1758832154079,0.76080121,3913.9,3913.8,2.55506157]
[1758832154478,0.54390121,3913.9,3913.8,2.55506157]
[1758832156133,0.54390121,3913.9,3913.7,2.55510588]
[1758832156444,0.54390121,3913.8,3913.7,2.55510588]
[1758832158109,0.1272,3914.0,3913.9,2.55499629]
[1758832158432,0.67128859,3914.0,3913.8,2.55504553]
[1758832158724,0.54408859,3913.9,3913.8,2.55504553]
[1758832159246,0.54408859,3913.9,3913.7,2.55510995]
[1758832159404,0.1272,3914.0,3913.7,2.55512686]
[1758832159746,0.76099742,3913.9,3913.6,6.94317556]
[1758832160034,0.54409742,3913.8,3913.6,6.94317556]
[1758832160343,0.54407147,3913.7,3913.4,0.002]
[1758832160495,0.1272,3913.7,3913.4,0.002]
[1758832160700,0.76097774,3913.6,3913.4,0.002]
[1758832160900,0.2169,3913.6,3913.4,0.002]
[1758832161142,0.1272,3913.7,3913.4,0.002]
[1758832161336,0.54403421,3913.6,3913.4,0.002]
[1758832161532,0.54403736,3913.5,3913.4,0.002]
[1758832161713,0.94805342,3913.5,3913.4,0.002]
[1758832162041,1.16495342,3913.5,3913.4,0.002]
[1758832162200,3.76341086,3913.5,3913.4,0.002]
[1758832162403,4.44437244,3913.5,3913.4,0.002]
[1758832162636,1.889115,3913.5,3913.4,0.002]
[1758832162838,4.44437244,3913.5,3913.4,0.002]
[1758832163137,8.405115,3913.5,3913.4,0.002]
[1758832163509,7.72415342,3913.5,3913.4,0.002]
[1758832163706,0.94805342,3913.5,3913.4,0.002]
[1758832163907,0.54403736,3913.5,3913.4,0.002]
[1758832164452,0.54403736,3913.5,3913.4,2.38287595]
[1758832164608,0.54403736,3913.5,3913.4,2.35732273]
[1758832167543,0.54403736,3913.5,3913.3,2.55538803]
[1758832167753,0.1272,3913.6,3913.3,2.55538803]
[1758832167938,0.76080015,3913.5,3913.1,0.002]
[1758832168118,0.1272,3913.3,3913.2,2.55541158]
[1758832168445,0.67110015,3913.3,3913.2,2.55541158]
[1758832170025,0.67110015,3913.3,3913.1,0.002]
[1758832170026,2.55545333,3913.2,3913.1,0.002]
[1758832170223,5.61751573,3913.2,3913.1,0.002]
[1758832170538,6.78550376,3913.2,3913.1,0.002]
[1758832171948,11.17050376,3913.2,3913.1,0.002]
[1758832172140,19.58161573,3913.2,3913.1,0.002]
[1758832173551,20.48950376,3913.2,3913.1,0.002]
[1758832173927,17.93405043,3913.2,3913.1,0.002]
[1758832174126,16.9829624,3913.2,3913.1,0.002]
[1758832174451,19.53841573,3913.2,3913.1,0.002]
[1758832174862,10.2520624,3913.2,3913.1,0.002]
[1758832175025,14.24690015,3913.2,3913.1,0.002]
[1758832175218,16.80235348,3913.2,3913.1,0.002]
[1758832175562,17.01925348,3913.2,3913.1,0.002]
[1758832176331,17.06245348,3913.2,3913.1,0.002]
[1758832176861,17.97034151,3913.2,3913.1,0.002]
[1758832177064,20.15893497,3913.2,3913.1,0.002]
[1758832177962,19.25104694,3913.2,3913.1,0.002]
[1758832178765,19.20784694,3913.2,3913.1,0.002]
[1758832179065,16.65239361,3913.2,3913.1,0.002]
[1758832179360,19.25104694,3913.2,3913.1,0.002]
[1758832179755,16.69559361,3913.2,3913.1,0.002]
[1758832179935,19.20784694,3913.2,3913.1,0.002]
[1758832180134,16.65239361,3913.2,3913.1,0.002]
[1758832180370,19.20784694,3913.2,3913.1,0.002]
[1758832182436,24.74288694,3913.2,3913.1,0.002]
[1758832182630,24.74288694,3913.2,3913.0,0.002]
[1758832182631,5.68271864,3913.1,3913.0,0.002]
[1758832182867,22.12050474,3913.1,3913.0,0.002]
[1758832183167,25.62893004,3913.1,3913.0,0.002]
[1758832183376,27.43165374,3913.1,3913.0,0.002]
[1758832183666,50.27199074,3913.1,3913.0,0.002]
[1758832183868,39.73021774,3913.1,3913.0,0.002]
[1758832184067,38.25228174,3913.1,3913.0,0.002]
[1758832184370,37.51928174,3913.1,3913.0,0.002]
[1758832184569,33.20373174,3913.1,3913.0,0.002]
[1758832184879,33.20373174,3913.1,3912.8,0.002]
[1758832184880,5.55564926,3912.9,3912.8,0.002]
[1758832185037,19.63147726,3912.9,3912.8,0.002]
[1758832185244,25.95182626,3912.9,3912.8,0.002]
[1758832185643,25.18264926,3912.9,3912.8,0.002]
[1758832185971,23.61837726,3912.9,3912.8,0.002]
[1758832186272,23.66157726,3912.9,3912.8,0.002]
[1758832186574,22.02157726,3912.9,3912.8,0.002]
[1758832186746,31.03119626,3912.9,3912.8,0.002]
[1758832186944,30.35019626,3912.9,3912.8,0.002]
[1758832187143,29.34758226,3912.9,3912.8,0.002]
[1758832187475,18.81860226,3912.9,3912.8,0.002]
[1758832187658,24.32859326,3912.9,3912.8,0.002]
[1758832187860,24.42444626,3912.9,3912.8,0.002]
[1758832188374,21.97737726,3912.9,3912.8,0.002]
[1758832188583,15.24847726,3912.9,3912.8,0.002]
[1758832188902,21.97737726,3912.9,3912.8,0.002]
[1758832189081,52.02057726,3912.9,3912.8,0.002]
[1758832189268,33.79895026,3912.9,3912.8,0.002]
[1758832190178,52.02057726,3912.9,3912.8,0.002]
[1758832190961,5.68291457,3912.8,3912.7,0.002]
[1758832191165,38.74497697,3912.8,3912.7,0.002]
[1758832191389,38.96187697,3912.8,3912.7,0.002]
[1758832191788,33.97986597,3912.8,3912.7,0.002]
[1758832192089,14.32651547,3912.8,3912.7,0.002]
[1758832192398,10.55651547,3912.8,3912.7,0.002]
[1758832192555,15.25597697,3912.8,3912.7,0.002]
[1758832192794,2.55591054,3912.5,3912.4,0.002]
[1758832193009,9.51758267,3912.5,3912.4,0.002]
[1758832193445,0.06890015,3912.5,3912.4,0.6767]
[1758832193743,4.44990015,3912.5,3912.4,0.6767]
[1758832193900,4.44990015,3912.5,3912.4,3.23267587]
[1758832194096,0.06890015,3912.5,3912.4,3.23267587]
[1758832194998,4.5082,3912.8,3912.7,2.55577989]
[1758832195220,4.5082,3912.8,3912.7,3.23047989]
[1758832195420,4.5082,3912.8,3912.7,4.06491157]
[1758832196129,0.1282,3913.0,3912.9,2.55564926]
[1758832196470,4.5082,3913.0,3912.9,2.55564926]
[1758832196617,4.5082,3913.0,3912.9,3.23034926]
[1758832197451,0.1282,3913.0,3912.9,4.02234926]
[1758832197663,0.001,3913.0,3912.9,4.76616106]
[1758832197856,0.001,3913.0,3912.9,7.89336106]
[1758832200627,0.001,3913.0,3912.9,6.35754926]
[1758832200960,0.1282,3913.0,3912.9,2.79284926]
[1758832201160,0.001,3913.0,3912.9,3.25590575]
[1758832201371,0.001,3913.0,3912.9,4.04790575]
[1758832201777,0.001,3913.0,3912.9,2.55564926]
[1758832201977,0.1282,3913.0,3912.9,2.79284926]
[1758832202142,0.1282,3913.0,3912.9,3.23034926]
[1758832203074,0.1282,3913.0,3912.9,4.13451568]
[1758832203258,0.1282,3913.0,3912.9,4.10895919]
[1758832204014,0.1282,3913.0,3912.4,6.93592875]
[1758832204015,0.1282,3913.0,3912.4,0.2485]
[1758832204300,0.2169,3912.9,3912.4,0.002]
[1758832204618,2.77255929,3912.9,3912.4,0.002]
[1758832204793,2.55565929,3912.9,3912.4,0.002]
[1758832204996,0.76140261,3912.8,3912.4,0.002]
[1758832205170,1.44076938,3912.8,3912.4,0.002]
[1758832205504,1.22212779,3912.7,3912.4,0.002]
[1758832205803,4.92076102,3912.6,3912.5,2.80235597]
[1758832206097,4.92076102,3912.6,3912.5,3.27235597]
[1758832206702,0.54276102,3912.6,3912.5,3.27235597]
[1758832206878,0.54276102,3912.6,3912.5,4.65015117]
[1758832207082,0.001,3913.0,3912.9,3.34764926]
[1758832207280,0.001,3913.0,3912.9,10.75020575]
[1758832207597,0.001,3913.0,3912.9,11.44114926]
[1758832208300,0.001,3913.0,3912.9,11.56834926]
[1758832208603,0.001,3913.0,3912.9,12.97069723]
[1758832208903,0.001,3913.0,3912.9,8.59369723]
[1758832209101,0.001,3913.0,3912.9,12.84349723]
[1758832210574,0.001,3913.0,3912.9,2.55564926]
[1758832210771,0.1272,3912.9,3912.6,2.55583408]
[1758832210976,0.54258263,3912.8,3912.6,2.55584521]
[1758832211200,0.1272,3912.6,3912.5,0.002]
[1758832211396,0.1272,3912.6,3912.5,2.55791054]
[1758832212091,0.1272,3912.6,3912.5,0.002]
[1758832212313,0.8057,3912.6,3912.5,0.002]
[1758832212634,1.73868258,3912.6,3912.5,0.002]
[1758832212832,4.29452779,3912.6,3912.5,0.002]
[1758832213025,4.97389456,3912.6,3912.5,0.002]
[1758832213319,4.29452779,3912.6,3912.5,0.002]
[1758832213725,5.20016857,3912.6,3912.5,0.002]
[1758832214527,4.29452779,3912.6,3912.5,0.002]
[1758832214835,5.55591054,3912.5,3912.4,0.002]
[1758832215001,44.80419392,3912.5,3912.4,0.002]
[1758832215213,6.34797587,3912.4,3912.3,1e-08]
[1758832215400,5.55617187,3912.1,3912.0,1e-08]
[1758832215745,6.8907545,3912.1,3911.6,0.002]
[1758832215898,6.34849861,3911.6,3911.5,1e-08]
[1758832216097,14.28757222,3911.6,3911.5,1e-08]
[1758832216298,0.792,3911.4,3909.6,0.01283436]
[1758832216621,0.67673253,3910.1,3909.6,0.01283436]
[1758832216793,7.04858263,3910.0,3909.6,0.01283436]
[1758832216996,3.10019279,3909.9,3909.6,0.01283436]
[1758832217227,1.8944741,3909.9,3909.6,0.01283436]
[1758832217897,4.376,3909.8,3909.6,0.01283436]
[1758832218537,4.376,3909.7,3909.6,2.99998176]
[1758832218706,4.376,3909.7,3909.6,0.67263436]
[1758832218906,4.376,3909.7,3909.6,0.01283436]
[1758832219223,17.4687629,3909.7,3909.6,0.01283436]
[1758832219407,11.8582489,3909.7,3909.6,0.01283436]
[1758832219612,17.3113009,3909.7,3909.6,0.01283436]
[1758832219932,19.5859729,3909.7,3909.6,0.01283436]
[1758832220156,20.3779729,3909.7,3909.6,0.01283436]
[1758832220301,30.6807949,3909.7,3909.6,0.01283436]
[1758832221350,0.792,3909.3,3905.7,0.2304]
[1758832221652,0.792,3909.3,3905.4,0.50113465]
[1758832221653,0.67248579,3907.4,3905.8,0.6598]
[1758832221800,2.56010114,3906.1,3905.0,0.2304]
[1758832221995,2.56022939,3905.9,3905.0,0.2304]
[1758832222199,0.53634526,3905.9,3905.0,0.2304]
[1758832222435,0.2169,3906.3,3905.0,0.2304]
[1758832222436,3.637,3905.8,3905.1,0.4294]
[1758832222619,3.637,3905.8,3905.0,0.2304]
[1758832222620,4.0007,3905.7,3905.0,0.2304]
[1758832222999,4.0007,3905.7,3904.7,0.6598]
[1758832223000,2.56051167,3905.5,3904.7,0.6598]
[1758832223200,6.56106869,3905.7,3903.0,2.5620765]
[1758832223201,0.53468511,3905.6,3903.0,2.5620765]
[1758832223504,9.06854631,3905.5,3904.5,2.56114206]
[1758832223699,9.06854631,3905.5,3903.3,9.03690658]
[1758832223700,6.508,3905.5,3904.7,2.56099134]
[1758832223930,7.41484238,3905.5,3904.7,2.56099134]
[1758832224100,0.90684238,3905.5,3904.6,0.6598]
[1758832224298,6.509,3905.4,3904.6,0.6598]
[1758832224525,4.378,3905.3,3904.6,0.6598]
[1758832224901,4.378,3905.3,3904.7,2.56101576]
[1758832225331,0.66834889,3906.2,3905.1,2.56075388]
[1758832225531,0.128,3905.1,3905.0,2.56081946]
[1758832225734,0.128,3905.1,3905.0,2.81690141]
[1758832226104,0.128,3905.1,3905.0,3.22061946]
[1758832226624,0.128,3905.1,3904.1,3.0]
[1758832226813,2.68901003,3904.8,3903.5,2.132]
[1758832227014,0.128,3903.9,3903.8,2.79200663]
[1758832227324,1.861,3904.5,3904.2,2.56133554]
[1758832227521,0.128,3904.1,3903.9,2.56154102]
[1758832227730,0.128,3904.1,3904.0,2.5614754]
[1758832227926,0.128,3904.1,3904.0,3.09939179]
[1758832228221,0.89664772,3906.0,3904.0,3.09939179]
[1758832228222,0.128,3904.4,3904.3,2.56127859]
[1758832228557,0.128,3904.4,3904.3,3.24669137]
[1758832228841,0.128,3904.6,3904.3,0.68541278]
[1758832228999,2.77708359,3906.0,3904.8,2.56091483]
[1758832229199,0.44389382,3905.9,3904.8,0.4294]
[1758832229433,0.66834889,3905.6,3904.1,0.002]
[1758832229705,2.56082466,3905.0,3904.1,2.79375107]
[1758832229932,4.396,3904.9,3904.1,2.79375107]
[1758832230118,2.56106448,3904.7,3904.1,0.002]
[1758832230321,1.20981356,3904.8,3904.1,0.002]
[1758832230521,0.6797,3904.6,3904.1,0.002]
[1758832230841,2.56134419,3904.2,3904.1,0.002]
[1758832231023,9.09134419,3904.2,3904.1,0.002]
[1758832231335,10.30115775,3904.2,3904.1,0.002]
[1758832231536,13.30115775,3904.2,3904.1,0.002]
[1758832231840,26.11946315,3904.2,3904.1,0.002]
[1758832232050,26.11946315,3904.2,3903.8,0.002]
[1758832232051,2.56154102,3903.9,3903.8,1e-08]
[1758832232250,5.5618035,3903.5,3903.4,0.002]
[1758832232401,11.29291706,3903.5,3903.4,0.002]
[1758832232602,11.29291706,3903.5,3900.9,2.56349058]
[1758832232603,0.792,3903.3,3901.0,0.2304]
[1758832232916,0.66121204,3902.3,3901.0,0.2304]
[1758832233123,0.66121204,3902.6,3901.1,2.99272494]
[1758832233322,1.1913256,3903.0,3901.2,0.6598]
[1758832233638,1.1913256,3903.0,3901.2,0.4294]
[1758832233639,2.56245329,3902.6,3901.2,0.4294]
[1758832233847,4.417,3902.5,3901.8,2.56285417]
[1758832234054,0.56083256,3902.5,3901.7,0.2304]
[1758832234235,1.1913256,3903.1,3902.3,2.56258242]
[1758832234436,4.419,3903.0,3902.4,0.6598]
[1758832234734,0.53011356,3903.5,3902.6,2.5623943]
[1758832234937,0.40191173,3903.6,3902.6,2.56234154]
[1758832234938,5.241,3903.4,3902.6,2.56234154]
[1758832235137,5.241,3903.4,3902.8,2.56226296]
[1758832235325,5.241,3903.4,3902.0,0.792]
[1758832235644,0.66121204,3904.1,3902.9,0.6598]
[1758832235844,6.552,3904.0,3901.3,2.56324537]
[1758832236044,2.56188749,3903.4,3902.3,2.56253382]
[1758832236235,6.98193837,3903.3,3902.3,2.56253382]
[1758832236433,2.56175633,3903.6,3901.6,2.56305105]
[1758832236434,7.2337,3903.2,3901.6,2.79339408]
[1758832236634,3.0,3903.0,3901.8,2.56286397]
[1758832236820,1.3323553,3902.9,3901.6,0.2304]
[1758832237026,2.56239288,3902.7,3901.6,0.2304]
[1758832237229,4.421,3902.6,3901.6,0.2304]
[1758832237516,2.134,3903.1,3902.6,2.56234028]
[1758832237766,4.422,3903.2,3902.8,2.56221306]
[1758832237943,4.422,3903.2,3902.9,0.6598]
[1758832238130,0.67689,3903.9,3903.0,0.6598]
[1758832238317,0.2169,3904.6,3903.4,2.56186745]
[1758832238318,6.557,3903.8,3903.4,2.56186745]
[1758832238517,2.134,3904.0,3903.5,0.6598]
[1758832238749,4.423,3903.9,3903.0,2.79252449]
[1758832238951,4.423,3903.9,3903.1,2.56204978]
[1758832239259,4.95222014,3903.9,3903.0,2.79251075]
[1758832239422,0.70862201,3903.8,3903.0,2.79251075]
[1758832239749,0.70862201,3903.8,3903.3,2.56192751]
[1758832239961,4.422,3903.7,3903.4,0.6598]
[1758832240126,4.422,3903.7,3903.4,2.56185912]
[1758832240446,0.128,3903.4,3903.3,2.56193477]
[1758832240655,0.128,3903.2,3903.1,0.4294]
[1758832240857,0.128,3903.2,3903.1,3.35406605]
[1758832241150,2.79521204,3904.2,3902.9,2.56215268]
[1758832241151,0.128,3903.3,3902.9,0.128]
[1758832241323,0.128,3903.3,3903.0,0.6598]
[1758832241538,0.128,3903.3,3903.1,0.2304]
[1758832241878,0.128,3903.3,3903.2,2.5620004]
[1758832242174,0.128,3903.3,3903.0,2.56211653]
[1758832242175,0.65722014,3903.3,3903.0,2.56212141]
[1758832242336,0.52922014,3903.2,3902.3,0.3584]
[1758832242534,0.128,3902.5,3902.3,0.2304]
[1758832242737,0.128,3902.5,3902.4,3.22232562]
[1758832243542,0.66121204,3903.2,3902.4,0.6598]
[1758832243740,2.134,3903.6,3903.0,2.56213169]
[1758832243741,0.53281839,3903.1,3903.0,2.56213169]
[1758832244082,0.53281839,3903.1,3903.0,3.22193169]
[1758832244379,0.128,3903.0,3902.7,2.56228119]
[1758832244667,0.128,3902.8,3902.7,2.5623091]
[1758832244841,0.66081839,3902.8,3902.6,2.56238349]
[1758832245044,0.128,3902.8,3902.7,2.56232864]
[1758832245277,1.32406819,3902.8,3902.7,3.22212864]
[1758832245743,1.19606819,3902.8,3902.7,3.80058695]
[1758832246056,0.53485615,3902.8,3902.7,3.80058695]
[1758832246266,1.19606819,3902.8,3902.7,3.22212864]
[1758832246780,1.5444722,3902.8,3902.7,2.79272864]
[1758832247136,0.66285615,3902.8,3902.7,2.79272864]
[1758832247485,1.4289884,3902.8,3902.7,4.01412864]
[1758832247665,0.53485615,3902.8,3902.7,4.01412864]
[1758832247983,1.20546458,3902.8,3902.7,4.68478522]
[1758832248142,1.4289884,3902.8,3902.7,9.23178522]
[1758832248478,1.32242408,3903.2,3903.1,0.792]
[1758832248679,0.67183081,3903.5,3903.4,3.35386913]
[1758832248847,0.67183081,3903.6,3903.5,3.3538035]
[1758832249059,0.128,3903.9,3903.8,2.56160663]
[1758832249260,0.128,3903.9,3903.8,3.35360663]
[1758832249453,1.79329544,3904.4,3903.8,3.35360663]